bitfinex/quotes_BTCUSD_20241117
["timestamp","ask_amount","ask_price","bid_price","bid_amount"]
[1731820698416,0.31841442,90692.0,90691.0,0.0017124]
[1731820700710,0.005,90684.0,90661.0,0.220602]
[1731820700970,0.005,90684.0,90623.0,0.220694]
[1731820700971,0.16249697,90683.0,90675.0,0.110283]
[1731820701217,0.05343442,90682.0,90675.0,0.110283]
[1731820701433,0.1308277,90681.0,90674.0,0.110285]
[1731820701656,0.0205517,90680.0,90675.0,0.0551441]
[1731820701887,0.16524829,90699.0,90677.0,0.220562]
[1731820701888,0.03288272,90691.0,90677.0,0.220562]
[1731820702131,0.16524829,90684.0,90683.0,0.110274]
[1731820702350,0.12159656,90690.0,90683.0,0.110274]
[1731820702351,0.10906255,90690.0,90683.0,0.110274]
[1731820702608,0.16524829,90687.0,90683.0,0.110274]
[1731820702821,0.27551729,90687.0,90684.0,0.05734522]
[1731820703059,0.10906255,90690.0,90678.0,0.1323362]
[1731820703060,0.110271,90686.0,90678.0,0.1323362]
[1731820703299,0.220536,90688.0,90678.0,0.0220562]
[1731820703517,0.110271,90686.0,90680.0,0.0825]
[1731820704245,0.10906255,90688.0,90680.0,0.0825]
[1731820704246,0.11027,90687.0,90680.0,0.192776]
[1731820704501,0.16524829,90689.0,90681.0,0.04911686]
[1731820704992,0.27431084,90689.0,90682.0,0.22055]
[1731820704993,0.27431084,90689.0,90680.0,0.0825]
[1731820705245,0.25339872,90697.0,90680.0,0.0825]
[1731820705246,0.03288272,90698.0,90680.0,0.0825]
[1731820705480,0.16524829,90696.0,90695.0,0.110259]
[1731820706154,0.16524829,90696.0,90695.0,0.192759]
[1731820706585,0.21930955,90705.0,90695.0,0.0825]
[1731820706808,0.110248,90704.0,90696.0,0.0570849]
[1731820707040,0.21931055,90704.0,90697.0,0.110256]
[1731820707270,0.10906255,90704.0,90696.0,0.0570849]
[1731820707486,0.10906255,90704.0,90695.0,0.0825]
[1731820707487,0.10906255,90704.0,90695.0,0.192759]
[1731820707702,0.110252,90702.0,90695.0,0.192759]
[1731820707920,0.10906255,90704.0,90695.0,0.0825]
[1731820708175,0.21931155,90704.0,90696.0,0.0024135]
[1731820708439,0.10906255,90704.0,90691.0,0.10724743]
[1731820708680,0.11025,90703.0,90697.0,0.00212194]
[1731820708927,0.10906255,90704.0,90698.0,0.03329019]
[1731820709161,0.10906255,90704.0,90695.0,0.110258]
[1731820709375,0.10906255,90704.0,90699.0,0.00212129]
[1731820709598,0.32956155,90704.0,90690.0,0.110264]
[1731820709840,0.32956155,90704.0,90688.0,0.110267]
[1731820709841,0.110258,90697.0,90688.0,0.110267]
[1731820710049,0.110258,90697.0,90682.0,0.0008562]
[1731820710050,0.0017124,90699.0,90682.0,0.0008562]
[1731820710264,0.0017124,90699.0,90689.0,0.00212107]
[1731820710265,0.38576029,90698.0,90689.0,0.00212107]
[1731820710476,0.11026,90695.0,90690.0,0.023]
[1731820710685,0.38576029,90698.0,90690.0,0.023]
[1731820710914,0.16524829,90698.0,90689.0,0.02235243]
[1731820711175,0.38576029,90698.0,90685.0,0.023]
[1731820711431,0.110263,90692.0,90690.0,0.00212107]
[1731820711698,0.110263,90692.0,90691.0,0.01353931]
[1731820711934,0.4642487,90698.0,90684.0,0.023]
[1731820712201,0.110264,90692.0,90691.0,0.00212026]
[1731820712446,0.110264,90692.0,90685.0,0.04322842]
[1731820712447,0.110265,90690.0,90685.0,0.04322842]
[1731820712658,0.110266,90690.0,90685.0,0.04322842]
[1731820712874,0.110266,90690.0,90686.0,0.04967207]
[1731820713319,0.03290948,90694.0,90686.0,0.04967207]
[1731820713541,0.110266,90690.0,90682.0,0.0008562]
[1731820713766,0.110267,90689.0,90687.0,0.00212096]
[1731820713980,0.110265,90691.0,90687.0,0.01035772]
[1731820714195,0.110267,90689.0,90688.0,0.00212026]
[1731820714407,0.110267,90689.0,90687.0,0.01035772]
[1731820714618,0.110267,90689.0,90688.0,0.01426905]
[1731820714619,0.13086902,90689.0,90688.0,0.01426905]
[1731820714855,0.13086932,90689.0,90688.0,0.01426905]
[1731820715537,0.02060232,90689.0,90688.0,0.00212102]
[1731820715777,0.13086932,90689.0,90687.0,0.01035772]
[1731820715989,0.25348723,90693.0,90687.0,0.01035772]
[1731820715990,0.13087032,90688.0,90687.0,0.01035772]
[1731820716228,0.13087032,90688.0,90682.0,0.0008562]
[1731820716469,0.24114032,90687.0,90682.0,0.0008562]
[1731820716702,0.110274,90683.0,90682.0,0.0008562]
[1731820716941,0.12287632,90683.0,90682.0,0.0008562]
[1731820717864,0.12288399,90683.0,90682.0,0.0008562]
[1731820718320,0.1228832,90683.0,90682.0,0.0008562]
[1731820718540,0.05358564,90683.0,90682.0,0.0008562]
[1731820721283,0.16385964,90683.0,90682.0,0.0008562]
[1731820722373,0.09607019,90683.0,90682.0,0.0008562]
[1731820722612,0.110274,90683.0,90682.0,0.0008562]
[1731820722831,0.21933655,90683.0,90682.0,0.0008562]
[1731820723040,0.22709344,90683.0,90682.0,0.0008562]
[1731820723676,0.27187135,90683.0,90682.0,0.0008562]
[1731820726647,0.22709344,90683.0,90682.0,0.0008562]
[1731820728049,0.11681944,90683.0,90658.0,0.04768596]
[1731820728267,0.110287,90672.0,90660.0,0.220603]
[1731820728490,0.110289,90671.0,90662.0,0.110299]
[1731820728714,0.220573,90673.0,90664.0,0.110297]
[1731820728990,0.005,90681.0,90663.0,0.06845482]
[1731820728991,0.110285,90674.0,90663.0,0.0705889]
[1731820729200,0.16524829,90675.0,90665.0,0.110295]
[1731820729415,0.16524829,90675.0,90664.0,0.03929484]
[1731820729416,0.110288,90672.0,90664.0,0.03929484]
[1731820729622,0.22057,90674.0,90666.0,0.00215921]
[1731820729832,0.16524829,90675.0,90665.0,0.03075838]
[1731820730048,0.110291,90670.0,90665.0,0.03075838]
[1731820730465,0.110291,90670.0,90662.0,0.110299]
[1731820730694,0.110291,90670.0,90666.0,0.00203884]
[1731820730940,0.110287,90673.0,90663.0,0.0427198]
[1731820731156,0.110287,90673.0,90667.0,0.00203872]
[1731820731157,0.110289,90671.0,90667.0,0.00203872]
[1731820731377,0.16524829,90673.0,90668.0,0.03756565]
[1731820731629,0.16524829,90673.0,90663.0,0.0427198]
[1731820731868,0.220577,90671.0,90659.0,0.023]
[1731820732285,0.16524829,90673.0,90659.0,0.023]
[1731820732286,0.15724829,90673.0,90659.0,0.023]
[1731820732496,0.16524829,90663.0,90661.0,0.023]
[1731820732711,0.110299,90662.0,90661.0,0.023]
[1731820732996,0.110301,90661.0,90652.0,0.133311]
[1731820733467,0.14204259,90668.0,90659.0,0.110303]
[1731820733681,0.220579,90671.0,90655.0,0.17941301]
[1731820733682,0.16524829,90663.0,90660.0,0.0110303]
[1731820734146,0.14326704,90672.0,90662.0,0.17941301]
[1731820734381,0.220569,90675.0,90662.0,0.17941301]
[1731820734382,0.02060546,90671.0,90663.0,0.06555128]
[1731820734621,0.11029,90670.0,90663.0,0.06555128]
[1731820734850,0.11029,90670.0,90662.0,0.28971201]
[1731820734851,0.02060533,90669.0,90664.0,0.05877611]
[1731820735080,0.02060533,90668.0,90666.0,0.1017]
[1731820735318,0.16524829,90672.0,90667.0,0.31270601]
[1731820735655,0.02060297,90671.0,90668.0,0.110292]
[1731820735986,0.02060297,90670.0,90669.0,0.07432807]
[1731820737765,0.02060297,90670.0,90669.0,0.18461907]
[1731820737977,0.110281,90677.0,90669.0,0.18461907]
[1731820737978,0.16524829,90677.0,90671.0,0.110288]
[1731820738238,0.110282,90676.0,90672.0,0.09319097]
[1731820738454,0.02060638,90675.0,90672.0,0.09525119]
[1731820738682,0.0329712,90679.0,90673.0,0.14792242]
[1731820738683,0.02060638,90674.0,90673.0,0.14792242]
[1731820738895,0.02060638,90674.0,90673.0,0.32733543]
[1731820739135,0.02060638,90674.0,90673.0,0.32939614]
[1731820739585,0.02060638,90674.0,90673.0,0.21911014]
[1731820740014,0.02060638,90674.0,90673.0,0.32939614]
[1731820740436,0.0329712,90681.0,90673.0,0.23176967]
[1731820740437,0.03298941,90680.0,90673.0,0.23176967]
[1731820740690,0.22980501,90687.0,90673.0,0.12148367]
[1731820740906,0.11953501,90687.0,90681.0,0.110276]
[1731820741142,0.11953501,90687.0,90682.0,0.033084]
[1731820741367,0.0017126,90690.0,90682.0,0.033084]
[1731820741368,0.01078268,90694.0,90682.0,0.03513064]
[1731820741583,0.110272,90685.0,90683.0,0.02556936]
[1731820741799,0.110266,90690.0,90683.0,0.00204734]
[1731820742032,0.005,90695.0,90684.0,0.04115833]
[1731820742234,0.005,90695.0,90684.0,0.0432053]
[1731820742235,0.09890993,90689.0,90684.0,0.0432053]
[1731820742465,0.09890993,90688.0,90684.0,0.03743177]
[1731820742886,0.09890993,90689.0,90687.0,0.110269]
[1731820743107,0.09890993,90689.0,90688.0,0.15496288]
[1731820743500,0.09890993,90694.0,90688.0,0.00204532]
[1731820743596,0.09890993,90695.0,90688.0,0.00204532]
[1731820743824,0.09890993,90695.0,90690.0,0.110265]
[1731820744046,0.09890993,90695.0,90692.0,0.110262]
[1731820744484,0.09890993,90696.0,90693.0,0.00202665]
[1731820744700,0.27550429,90698.0,90694.0,0.03771332]
[1731820744701,0.09890993,90697.0,90694.0,0.03771332]
[1731820744904,0.110257,90697.0,90694.0,0.03771332]
[1731820745110,0.09890993,90697.0,90689.0,0.04431353]
[1731820745328,0.10062233,90699.0,90698.0,0.110256]
[1731820745539,0.0017124,90699.0,90698.0,0.41586901]
[1731820745764,0.0017124,90699.0,90698.0,0.48152627]
[1731820746864,0.15896069,90707.0,90706.0,0.110246]
[1731820747381,0.0988774,90720.0,90713.0,0.110237]
[1731820747622,0.0988774,90720.0,90698.0,0.31052396]
[1731820747623,0.24175564,90698.0,90697.0,0.110257]
[1731820747833,0.24175564,90698.0,90697.0,0.30980448]
[1731820748052,0.24175564,90698.0,90697.0,0.20241301]
[1731820748260,0.24175564,90698.0,90697.0,0.31267001]
[1731820749369,0.20985994,90698.0,90697.0,0.31267001]
[1731820750523,0.20985994,90698.0,90697.0,0.43637001]
[1731820751443,0.20985994,90698.0,90697.0,0.5412364]
[1731820751661,0.20985994,90698.0,90697.0,0.6412364]
[1731820752586,0.20985994,90698.0,90697.0,0.68561384]
[1731820753262,0.16524829,90712.0,90711.0,0.08930449]
[1731820753519,0.09961995,90711.0,90710.0,0.110241]
[1731820753948,0.09961995,90711.0,90710.0,0.133241]
[1731820754162,0.09961995,90711.0,90710.0,0.31265401]
[1731820754583,0.12006806,90722.0,90711.0,0.023]
[1731820754800,0.12006806,90722.0,90710.0,0.17941301]
[1731820754801,0.002,90749.0,90710.0,0.17941301]
[1731820755020,0.4124418,90769.0,90710.0,0.17941301]
[1731820755021,0.08984075,90724.0,90723.0,0.01]
[1731820755477,0.19376255,90724.0,90712.0,0.17941301]
[1731820755691,0.110228,90722.0,90712.0,0.17941301]
[1731820755909,0.10906255,90723.0,90713.0,0.00173793]
[1731820756161,0.21928855,90723.0,90714.0,0.110236]
[1731820756422,0.21928855,90723.0,90714.0,0.11197196]
[1731820756624,0.21928855,90723.0,90715.0,0.18105241]
[1731820756625,0.11023,90720.0,90715.0,0.18105241]
[1731820757057,0.10906255,90723.0,90715.0,0.18105241]
[1731820757494,0.110228,90721.0,90715.0,0.18105241]
[1731820757730,0.11023,90719.0,90715.0,0.18105241]
[1731820758170,0.10906255,90723.0,90715.0,0.18105241]
[1731820758398,0.110232,90718.0,90715.0,0.18105241]
[1731820759080,0.10906255,90723.0,90715.0,0.18105241]
[1731820759499,0.220456,90721.0,90715.0,0.18105241]
[1731820759710,0.220456,90721.0,90715.0,0.0016394]
[1731820760206,0.220456,90721.0,90711.0,0.110239]
[1731820760207,0.110231,90719.0,90711.0,0.110239]
[1731820760422,0.0814126,90724.0,90718.0,0.11023]
[1731820760633,0.0814126,90724.0,90716.0,0.110233]
[1731820760634,0.16524829,90723.0,90716.0,0.110233]
[1731820760839,0.0814126,90724.0,90719.0,0.00163436]
[1731820761043,0.0814126,90724.0,90719.0,0.110229]
[1731820761249,0.0814126,90724.0,90717.0,0.23290849]
[1731820761250,0.0814126,90724.0,90720.0,0.00163425]
[1731820761453,0.0814126,90724.0,90721.0,0.01243097]
[1731820761655,0.0814126,90724.0,90721.0,0.0140651]
[1731820761868,0.1836366,90724.0,90721.0,0.0140651]
[1731820762075,0.1836366,90724.0,90721.0,0.00163413]
[1731820762301,0.1836366,90724.0,90716.0,0.110233]
[1731820762760,0.16524829,90723.0,90717.0,0.0016346]
[1731820762959,0.110231,90718.0,90717.0,0.0016346]
[1731820763192,0.110237,90714.0,90702.0,0.1]
[1731820763403,0.11681831,90723.0,90705.0,0.110246]
[1731820763625,0.11681831,90723.0,90717.0,0.00163237]
[1731820763626,0.110231,90718.0,90717.0,0.00163237]
[1731820763878,0.110235,90716.0,90708.0,0.110243]
[1731820764131,0.220464,90718.0,90703.0,0.220497]
[1731820764347,0.16524829,90720.0,90670.0,0.11928522]
[1731820764348,0.194941,90710.0,90709.0,0.00163307]
[1731820764572,0.0797,90697.0,90684.0,0.16524829]
[1731820764802,0.0797,90697.0,90695.0,0.16524829]
[1731820765036,0.0797,90697.0,90685.0,0.01652483]
[1731820765267,0.0797,90697.0,90660.0,0.0008565]
[1731820765268,0.267018,90696.0,90660.0,0.0008565]
[1731820765507,0.110263,90693.0,90684.0,0.110272]
[1731820765741,0.110265,90691.0,90682.0,0.110275]
[1731820765977,0.110266,90689.0,90681.0,0.110276]
[1731820767156,0.110263,90692.0,90682.0,0.110274]
[1731820767379,0.110263,90692.0,90683.0,0.0110274]
[1731820767605,0.110264,90691.0,90683.0,0.0110274]
[1731820767829,0.110266,90690.0,90683.0,0.0110274]
[1731820768060,0.110266,90690.0,90684.0,0.01213014]
[1731820768521,0.16524829,90693.0,90676.0,0.1]
[1731820768522,0.220539,90687.0,90676.0,0.1]
[1731820768745,0.18581061,90693.0,90676.0,0.1]
[1731820768746,0.110273,90684.0,90676.0,0.1]
[1731820768983,0.110271,90686.0,90677.0,0.0016589]
[1731820769247,0.110271,90686.0,90678.0,0.02127962]
[1731820769473,0.24109532,90689.0,90678.0,0.02127962]
[1731820769474,0.02056232,90688.0,90678.0,0.00166944]
[1731820769704,0.110271,90685.0,90677.0,0.11028]
[1731820769938,0.110271,90685.0,90673.0,0.0008563]
[1731820769939,0.0762,90682.0,90673.0,0.0008563]
[1731820770187,0.28731532,90681.0,90678.0,0.00166932]
[1731820770434,0.28731532,90681.0,90673.0,0.0008563]
[1731820770435,0.110285,90674.0,90673.0,0.0008563]
[1731820770668,0.02556232,90680.0,90673.0,0.0008563]
[1731820770669,0.02557871,90680.0,90673.0,0.0008563]
[1731820770903,0.21369341,90677.0,90673.0,0.0008563]
[1731820771134,0.110285,90674.0,90673.0,0.0008563]
[1731820771370,0.02057871,90676.0,90673.0,0.0008563]
[1731820771609,0.110285,90674.0,90673.0,0.0008563]
[1731820771843,0.13086371,90674.0,90673.0,0.0008563]
[1731820772074,0.110285,90674.0,90673.0,0.0008563]
[1731820772308,0.02057871,90676.0,90673.0,0.0008563]
[1731820772309,0.220565,90676.0,90673.0,0.0008563]
[1731820772520,0.110281,90677.0,90667.0,0.110292]
[1731820772764,0.110283,90676.0,90667.0,0.110292]
[1731820773034,0.110283,90676.0,90668.0,0.00167046]
[1731820773241,0.02057871,90677.0,90668.0,0.00167046]
[1731820773467,0.110291,90669.0,90668.0,0.00167046]
[1731820773694,0.110291,90669.0,90655.0,0.1]
[1731820773695,0.02057871,90674.0,90654.0,0.19506838]
[1731820773930,0.02057871,90674.0,90647.0,0.220636]
[1731820773931,0.110294,90667.0,90659.0,0.110303]
[1731820774162,0.110292,90668.0,90659.0,0.110303]
[1731820774390,0.110293,90667.0,90660.0,0.00167023]
[1731820774614,0.0462,90666.0,90660.0,0.00167023]
[1731820774841,0.1224,90666.0,90660.0,0.00167023]
[1731820775061,0.110296,90665.0,90656.0,0.110306]
[1731820775297,0.110296,90665.0,90661.0,0.00167]
[1731820775521,0.110297,90664.0,90656.0,0.110306]
[1731820775784,0.220595,90664.0,90647.0,0.023]
[1731820776005,0.110296,90665.0,90657.0,0.00167023]
[1731820776230,0.110299,90663.0,90658.0,0.01119762]
[1731820776448,0.110299,90663.0,90654.0,0.110308]
[1731820776652,0.110299,90663.0,90658.0,0.00167023]
[1731820776882,0.14295484,90666.0,90651.0,0.220626]
[1731820777117,0.110297,90664.0,90659.0,0.00166988]
[1731820777352,0.110297,90665.0,90656.0,0.110306]
[1731820777579,0.342991,90666.0,90647.0,0.123]
[1731820777799,0.342991,90666.0,90657.0,0.00171729]
[1731820777800,0.005,90662.0,90657.0,0.00171729]
[1731820778024,0.220606,90659.0,90649.0,0.110315]
[1731820778249,0.110306,90657.0,90650.0,0.0110315]
[1731820778479,0.005,90662.0,90650.0,0.0110315]
[1731820778480,0.220604,90660.0,90650.0,0.0110315]
[1731820778712,0.005,90662.0,90644.0,0.023]
[1731820778936,0.220604,90660.0,90645.0,0.22064]
[1731820779199,0.220602,90661.0,90649.0,0.110315]
[1731820779431,0.110308,90655.0,90648.0,0.110316]
[1731820780139,0.11031,90653.0,90645.0,0.110319]
[1731820780339,0.110318,90647.0,90642.0,0.0008569]
[1731820780600,0.220626,90651.0,90642.0,0.0008569]
[1731820780601,0.11032,90645.0,90642.0,0.0008569]
[1731820781053,0.110318,90647.0,90642.0,0.0008569]
[1731820781289,0.220636,90647.0,90643.0,0.01111829]
[1731820781507,0.16524829,90648.0,90642.0,0.0008569]
[1731820781508,0.110322,90643.0,90642.0,0.0008569]
[1731820782448,0.110322,90643.0,90642.0,0.01197569]
[1731820782901,0.220638,90646.0,90642.0,0.01197569]
[1731820783125,0.005,90649.0,90642.0,0.0008569]
[1731820783349,0.11032,90645.0,90642.0,0.0008569]
[1731820783569,0.11032,90645.0,90643.0,0.00172054]
[1731820783816,0.005,90649.0,90644.0,0.01129044]
[1731820784036,0.005,90649.0,90643.0,0.00172054]
[1731820784269,0.110318,90647.0,90642.0,0.0008569]
[1731820784500,0.005,90649.0,90642.0,0.0008569]
[1731820784501,0.220638,90646.0,90644.0,0.00176785]
[1731820784726,0.220638,90646.0,90643.0,0.00176773]
[1731820784947,0.110321,90644.0,90642.0,0.02300869]
[1731820785175,0.110322,90643.0,90642.0,0.02300869]
[1731820785397,0.220638,90646.0,90642.0,0.0008569]
[1731820785619,0.005,90649.0,90642.0,0.0008569]
[1731820785847,0.110317,90648.0,90642.0,0.0008569]
[1731820786071,0.110317,90648.0,90643.0,0.110322]
[1731820786547,0.110308,90656.0,90644.0,0.220642]
[1731820786789,0.220609,90658.0,90650.0,0.110313]
[1731820787243,0.220609,90658.0,90648.0,0.110316]
[1731820787244,0.110308,90655.0,90648.0,0.110316]
[1731820787474,0.110307,90656.0,90649.0,0.110315]
[1731820787699,0.110307,90656.0,90650.0,0.012341]
[1731820787700,0.110308,90656.0,90650.0,0.012341]
[1731820787932,0.220609,90658.0,90650.0,0.012341]
[1731820788171,0.110308,90655.0,90650.0,0.012341]
[1731820788461,0.005,90651.0,90647.0,0.110316]
[1731820788698,0.110309,90654.0,90641.0,0.22065]
[1731820788927,0.005,90649.0,90641.0,0.22065]
[1731820789166,0.005,90649.0,90648.0,0.110316]
[1731820789413,0.005,90649.0,90643.0,0.110322]
[1731820789653,0.110321,90645.0,90638.0,0.110328]
[1731820789879,0.220636,90647.0,90639.0,0.110327]
[1731820790127,0.0482,90648.0,90633.0,0.2233247]
[1731820790373,0.220639,90646.0,90638.0,0.110328]
[1731820790595,0.0482,90648.0,90643.0,0.01111849]
[1731820790830,0.0482,90648.0,90643.0,0.00178828]
[1731820790831,0.110318,90647.0,90643.0,0.00178828]
[1731820791519,0.11032,90646.0,90643.0,0.00178828]
[1731820791974,0.10232,90646.0,90643.0,0.00178828]
[1731820792855,0.11032,90645.0,90643.0,0.00178828]
[1731820793311,0.273834,90648.0,90643.0,0.00178828]
[1731820793570,0.02050277,90651.0,90644.0,0.220643]
[1731820793807,0.02050277,90651.0,90643.0,0.00399458]
[1731820793808,0.21344829,90656.0,90645.0,0.02475558]
[1731820794044,0.21344829,90656.0,90655.0,0.110308]
[1731820794045,0.16524829,90656.0,90655.0,0.110308]
[1731820794509,0.02054841,90657.0,90653.0,0.220619]
[1731820794746,0.005,90662.0,90653.0,0.220619]
[1731820794747,0.02054841,90661.0,90655.0,0.00179483]
[1731820794976,0.005,90662.0,90654.0,0.0220619]
[1731820794977,0.110304,90659.0,90656.0,0.01243089]
[1731820795212,0.02054841,90658.0,90656.0,0.0017953]
[1731820795449,0.110301,90661.0,90656.0,0.0017953]
[1731820795450,0.02054841,90657.0,90656.0,0.0017953]
[1731820795679,0.13085341,90657.0,90656.0,0.0017953]
[1731820795960,0.02054841,90657.0,90646.0,0.0821]
[1731820796190,0.02054841,90657.0,90643.0,0.220645]
[1731820796191,0.11031,90654.0,90648.0,0.110316]
[1731820796437,0.02054841,90653.0,90647.0,0.00179588]
[1731820796669,0.220626,90651.0,90642.0,0.0008569]
[1731820796917,0.14684841,90652.0,90642.0,0.0008569]
[1731820797152,0.110316,90649.0,90643.0,0.02215119]
[1731820797389,0.110316,90649.0,90643.0,0.13247319]
[1731820797390,0.110315,90649.0,90643.0,0.13247319]
[1731820797623,0.13086541,90648.0,90643.0,0.02215119]
[1731820797851,0.1263,90652.0,90644.0,0.0123416]
[1731820797852,0.02054841,90647.0,90644.0,0.0123416]
[1731820798079,0.02054841,90646.0,90644.0,0.0123416]
[1731820798293,0.13086841,90645.0,90644.0,0.00178559]
[1731820798511,0.13086841,90645.0,90642.0,0.0008569]
[1731820798512,0.02054841,90645.0,90642.0,0.0008569]
[1731820798717,0.02054841,90644.0,90642.0,0.0008569]
[1731820798931,0.220629,90650.0,90642.0,0.0008569]
[1731820798932,0.02054841,90643.0,90642.0,0.02300869]
[1731820800524,0.02061653,90643.0,90642.0,0.02300869]
[1731820801229,0.02061653,90643.0,90642.0,0.13333269]
[1731820802153,0.02061653,90643.0,90642.0,0.15633269]
[1731820802900,0.110313,90651.0,90642.0,0.04600869]
[1731820803137,0.16524829,90644.0,90643.0,0.012341]
[1731820803365,0.05364437,90644.0,90642.0,0.0008569]
[1731820803610,0.05364437,90643.0,90642.0,0.0008569]
[1731820804527,0.05364437,90643.0,90642.0,0.1111809]
[1731820805468,0.02062764,90643.0,90642.0,0.1111809]
[1731820805924,0.02062764,90643.0,90642.0,0.0008569]
[1731820806166,0.02062764,90643.0,90642.0,0.02300879]
[1731820806625,0.02062764,90643.0,90642.0,0.02480707]
[1731820806860,0.01262764,90643.0,90642.0,0.02480707]
[1731820807092,0.110318,90647.0,90642.0,0.02480707]
[1731820807327,0.110316,90648.0,90643.0,0.0123409]
[1731820807598,0.110319,90646.0,90643.0,0.0123409]
[1731820808074,0.110317,90648.0,90644.0,0.00179839]
[1731820808319,0.16524829,90649.0,90645.0,0.01253222]
[1731820808320,0.110318,90647.0,90645.0,0.01253222]
[1731820808554,0.1927324,90646.0,90645.0,0.01433256]
[1731820808811,0.1927324,90646.0,90645.0,0.00180034]
[1731820809038,0.1927324,90646.0,90642.0,0.0008569]
[1731820809039,0.110322,90643.0,90642.0,0.0008569]
[1731820811447,0.157222,90643.0,90642.0,0.0008569]
[1731820812391,0.162222,90643.0,90642.0,0.0008569]
[1731820813720,0.09889014,90662.0,90642.0,0.0008569]
[1731820813960,0.0009978,90667.0,90644.0,0.023]
[1731820814214,0.16524829,90660.0,90644.0,0.330964]
[1731820814428,0.16524829,90660.0,90642.0,0.0008569]
[1731820814429,0.110308,90656.0,90646.0,0.110319]
[1731820814641,0.110308,90656.0,90645.0,0.00181653]
[1731820814642,0.16524829,90660.0,90645.0,0.00181653]
[1731820814872,0.16524829,90660.0,90642.0,0.0008569]
[1731820814873,0.16524829,90660.0,90647.0,0.00181502]
[1731820815090,0.16524829,90660.0,90648.0,0.07740604]
[1731820815306,0.16524829,90660.0,90653.0,0.11031]
[1731820815545,0.16524829,90660.0,90654.0,0.0182714]
[1731820815755,0.16524829,90660.0,90656.0,0.110306]
[1731820815981,0.16524829,90660.0,90657.0,0.00344691]
[1731820816251,0.110304,90658.0,90657.0,0.00181485]
[1731820816499,0.110304,90658.0,90636.0,0.220661]
[1731820816500,0.220578,90671.0,90643.0,0.0752]
[1731820816715,0.1248,90666.0,90647.0,0.00344699]
[1731820816932,0.110304,90659.0,90650.0,0.110313]
[1731820817144,0.110304,90659.0,90651.0,0.11375999]
[1731820817371,0.220592,90665.0,90651.0,0.00179749]
[1731820817625,0.110302,90660.0,90653.0,0.11031]
[1731820818080,0.110298,90664.0,90654.0,0.00179745]
[1731820818299,0.0469,90666.0,90657.0,0.110305]
[1731820818512,0.0469,90666.0,90657.0,0.220611]
[1731820818744,0.0469,90666.0,90661.0,0.1103]
[1731820818996,0.0469,90666.0,90658.0,0.00179769]
[1731820819261,0.0469,90666.0,90654.0,0.220618]
[1731820819262,0.110297,90664.0,90662.0,0.00179722]
[1731820819944,0.04965746,90666.0,90654.0,0.220618]
[1731820819945,0.04965746,90666.0,90663.0,0.00179687]
[1731820820224,0.0469,90666.0,90663.0,0.00179687]
[1731820820662,0.0469,90666.0,90655.0,0.220616]
[1731820820663,0.0464,90674.0,90659.0,0.081]
[1731820820668,0.16524829,90671.0,90667.0,0.110293]
[1731820820876,0.16524829,90671.0,90668.0,0.00179479]
[1731820821113,0.0464,90674.0,90668.0,0.110292]
[1731820821295,0.110286,90673.0,90666.0,0.110294]
[1731820821634,0.0464,90674.0,90669.0,0.00177647]
[1731820821845,0.0464,90674.0,90659.0,0.081]
[1731820821846,0.0384,90674.0,90659.0,0.081]
[1731820822096,0.0384,90674.0,90670.0,0.00177188]
[1731820822304,0.0384,90674.0,90667.0,0.110292]
[1731820822520,0.110282,90676.0,90669.0,0.11029]
[1731820822751,0.110282,90676.0,90668.0,0.00176842]
[1731820822964,0.0017128,90679.0,90671.0,0.110288]
[1731820823201,0.0017128,90679.0,90669.0,0.00176869]
[1731820823407,0.0017128,90679.0,90662.0,0.220599]
[1731820823408,0.0017128,90679.0,90675.0,0.110283]
[1731820823625,0.0017128,90679.0,90676.0,0.110282]
[1731820823845,0.0017128,90679.0,90676.0,0.00176529]
[1731820824074,0.0017128,90679.0,90677.0,0.110281]
[1731820824281,0.0017128,90679.0,90665.0,0.220592]
[1731820824282,0.0017128,90679.0,90648.0,0.0058565]
[1731820824500,0.0017128,90679.0,90678.0,0.00176466]
[1731820824716,0.0017128,90679.0,90678.0,0.11028]
[1731820824931,0.0017128,90679.0,90678.0,0.11204466]
[1731820825210,0.0017128,90679.0,90678.0,0.13504466]
[1731820826569,0.0017128,90679.0,90678.0,0.13724988]
[1731820826797,0.0017128,90679.0,90678.0,0.18025725]
[1731820827271,0.0017128,90679.0,90678.0,0.11204466]
[1731820827488,0.0017128,90679.0,90678.0,0.00176466]
[1731820827943,0.0017128,90679.0,90673.0,0.110285]
[1731820828245,0.0017128,90679.0,90678.0,0.00169953]
[1731820828414,0.0017128,90679.0,90664.0,0.081]
[1731820828624,0.220563,90677.0,90666.0,0.110294]
[1731820828864,0.110285,90674.0,90666.0,0.110294]
[1731820829076,0.38857037,90676.0,90665.0,0.00170104]
[1731820829308,0.38857037,90676.0,90667.0,0.00170095]
[1731820829309,0.110289,90671.0,90667.0,0.00170095]
[1731820829518,0.110289,90671.0,90655.0,0.0808]
[1731820829722,0.110286,90673.0,90666.0,0.110294]
[1731820830169,0.110287,90672.0,90666.0,0.110294]
[1731820831798,0.16524829,90676.0,90655.0,0.0808]
[1731820831799,0.16524829,90676.0,90658.0,0.023]
[1731820831999,0.110285,90674.0,90668.0,0.110291]
[1731820832210,0.16524829,90676.0,90666.0,0.110294]
[1731820832412,0.16524829,90676.0,90669.0,0.00283516]
[1731820832413,0.220567,90675.0,90669.0,0.00283516]
[1731820832615,0.110285,90674.0,90666.0,0.110294]
[1731820832835,0.220567,90675.0,90666.0,0.110294]
[1731820832836,0.110287,90672.0,90666.0,0.110294]
[1731820833290,0.110287,90672.0,90656.0,0.220614]
[1731820833291,0.16696129,90676.0,90657.0,0.023]
[1731820833704,0.110287,90673.0,90666.0,0.110294]
[1731820834056,0.110287,90673.0,90667.0,0.00283484]
[1731820834260,0.11029,90670.0,90667.0,0.00283484]
[1731820834670,0.220567,90675.0,90656.0,0.220613]
[1731820834844,0.220567,90675.0,90657.0,0.00283603]
[1731820835052,0.11029,90670.0,90663.0,0.110298]
[1731820835371,0.11029,90670.0,90664.0,0.00283484]
[1731820835575,0.110288,90672.0,90664.0,0.00283484]
[1731820835784,0.16795569,90676.0,90664.0,0.00283484]
[1731820836022,0.110285,90674.0,90668.0,0.110292]
[1731820836346,0.110286,90673.0,90669.0,0.00283475]
[1731820836805,0.110286,90673.0,90664.0,0.220592]
[1731820836806,0.102286,90673.0,90667.0,0.110293]